bitfinex-derivatives/quotes_BTCF0:USTF0_20241005
["timestamp","ask_amount","ask_price","bid_price","bid_amount"]
[1728158827568,0.427523,61804.0,61803.0,0.0028]
[1728158827776,0.537523,61804.0,61803.0,0.0028]
[1728158830170,0.537523,61804.0,61803.0,0.064725]
[1728158830171,0.12561168,61804.0,61803.0,0.064725]
[1728158830471,0.07394525,61804.0,61803.0,1.620925]
[1728158830674,0.14497182,61806.0,61805.0,0.064722]
[1728158830869,0.22920341,61806.0,61805.0,0.064722]
[1728158831174,0.22920341,61806.0,61805.0,1.0854]
[1728158831175,0.08423159,61806.0,61805.0,1.0854]
[1728158831358,0.03457196,61806.0,61805.0,1.150122]
[1728158832075,0.03657196,61806.0,61805.0,1.150122]
[1728158835767,0.03657196,61806.0,61805.0,0.550122]
[1728158835982,0.03657196,61806.0,61805.0,0.064722]
[1728158835983,0.10129296,61806.0,61805.0,0.064722]
[1728158836760,0.03657196,61806.0,61804.0,0.0318]
[1728158836984,0.064723,61804.0,61803.0,0.00112]
[1728158837275,0.064726,61802.0,61801.0,0.09335404]
[1728158837861,0.002,61806.0,61801.0,0.02862704]
[1728158838069,0.002,61806.0,61795.0,0.40242]
[1728158838070,0.002,61806.0,61805.0,0.11]
[1728158838271,0.002,61806.0,61805.0,0.174722]
[1728158838474,0.002,61806.0,61805.0,0.207722]
[1728158839581,0.002,61806.0,61805.0,0.208722]
[1728158839773,0.001,61806.0,61805.0,0.208722]
[1728158840668,0.002,61806.0,61805.0,0.209722]
[1728158847486,0.066721,61806.0,61805.0,0.176722]
[1728158852889,0.10634157,61806.0,61805.0,0.176722]
[1728158853079,0.13973054,61806.0,61805.0,0.176722]
[1728158853281,0.07500954,61806.0,61805.0,0.176722]
[1728158854089,0.03538897,61806.0,61805.0,0.176722]
[1728158854480,0.002,61806.0,61805.0,0.176722]
[1728158854786,0.0335765,61808.0,61805.0,1.1974]
[1728158854981,0.0113,61810.0,61807.0,0.11]
[1728158855188,0.064711,61816.0,61808.0,0.064719]
[1728158855189,0.03364662,61809.0,61808.0,0.064719]
[1728158855485,0.03364662,61809.0,61808.0,0.174719]
[1728158855695,0.03364662,61809.0,61808.0,0.660079]
[1728158856783,0.03464662,61809.0,61808.0,0.661079]
[1728158857188,0.03564662,61809.0,61808.0,0.662079]
[1728158857398,0.002,61809.0,61808.0,0.662079]
[1728158857594,0.03566352,61809.0,61808.0,0.662079]
[1728158858288,0.03566352,61809.0,61808.0,1.022879]
[1728158859098,0.03566352,61809.0,61808.0,0.537519]
[1728158860692,0.002,61809.0,61808.0,0.537519]
[1728158862191,0.002,61809.0,61808.0,0.427519]
[1728158862393,0.002,61809.0,61808.0,0.066719]
[1728158862695,0.0638,61809.0,61808.0,0.13140213]
[1728158863610,0.0638,61809.0,61808.0,0.066719]
[1728158864500,0.0638,61809.0,61808.0,0.13140328]
[1728158864698,0.0638,61809.0,61808.0,0.066719]
[1728158865394,0.0638,61809.0,61808.0,0.13140199]
[1728158867603,0.13690966,61809.0,61808.0,0.066719]
[1728158870208,0.20877182,61809.0,61808.0,0.066719]
[1728158870413,0.33154279,61809.0,61808.0,0.066719]
[1728158870711,0.98154279,61809.0,61808.0,0.066719]
[1728158871115,0.83657097,61809.0,61808.0,0.066719]
[1728158871597,0.98164358,61809.0,61808.0,0.066719]
[1728158871917,0.98165942,61809.0,61808.0,0.066719]
[1728158872299,0.83658681,61809.0,61808.0,0.066719]
[1728158872513,0.98166657,61809.0,61808.0,0.066719]
[1728158874306,0.83658681,61809.0,61808.0,0.066719]
[1728158874804,0.7138,61809.0,61808.0,0.17776195]
[1728158875517,0.7138,61809.0,61808.0,0.28776195]
[1728158881011,0.7138,61809.0,61808.0,0.28777164]
[1728158881222,0.7138,61809.0,61808.0,0.29044164]
[1728158881608,0.778518,61809.0,61808.0,0.18044164]
[1728158881814,0.778518,61809.0,61808.0,0.15027025]
[1728158882112,0.778518,61809.0,61808.0,0.069389]
[1728158882905,0.85168721,61809.0,61808.0,0.069389]
[1728158887108,0.85168721,61809.0,61808.0,0.00467]
[1728158890113,0.85168721,61809.0,61808.0,0.19667329]
[1728158890114,0.778518,61809.0,61808.0,0.19667329]
[1728158890416,0.778518,61809.0,61808.0,0.19668305]
[1728158891411,0.778518,61809.0,61808.0,0.19670231]
[1728158891609,0.778518,61809.0,61808.0,0.08555125]
[1728158893319,0.778518,61809.0,61808.0,0.00467]
[1728158896104,1.263878,61809.0,61808.0,0.00467]
[1728158896306,0.06472,61807.0,61805.0,0.06473918]
[1728158896508,0.174721,61806.0,61805.0,0.04853646]
[1728158896709,0.064722,61805.0,61804.0,0.04853646]
[1728158896919,0.207422,61805.0,61804.0,0.04853646]
[1728158897420,0.207422,61805.0,61803.0,0.04853646]
[1728158897421,0.064723,61804.0,61803.0,0.04853646]
[1728158897628,0.174723,61804.0,61803.0,0.04853646]
[1728158898119,0.064725,61803.0,61802.0,0.04853646]
[1728158898316,0.174725,61803.0,61802.0,0.04853646]
[1728158898617,0.174725,61803.0,61795.0,0.44168125]
[1728158898618,0.064727,61801.0,61800.0,0.04853646]
[1728158898918,0.174727,61801.0,61800.0,0.04853646]
[1728158899121,0.064727,61801.0,61800.0,0.04853646]
[1728158899316,0.064728,61800.0,61793.0,0.0075]
[1728158899510,0.064735,61793.0,61792.0,0.00242731]
[1728158899707,0.174735,61793.0,61792.0,0.00242731]
[1728158899916,0.064735,61793.0,61792.0,0.00242731]
[1728158900111,0.064735,61793.0,61789.0,0.11]
[1728158900316,0.064738,61790.0,61789.0,0.11]
[1728158901724,0.065738,61790.0,61789.0,0.111]
[1728158902314,0.066738,61790.0,61789.0,0.111]
[1728158904510,0.066738,61790.0,61789.0,0.001]
[1728158904916,0.066738,61790.0,61789.0,0.111]
[1728158905423,0.066738,61790.0,61789.0,0.001]
[1728158907429,0.066738,61790.0,61789.0,0.111]
[1728158907726,0.066738,61790.0,61789.0,0.175739]
[1728158907727,0.002,61790.0,61789.0,0.175739]
[1728158910819,0.066738,61790.0,61789.0,0.001]
[1728158911831,0.066738,61790.0,61789.0,0.111]
[1728158913224,0.11,61793.0,61789.0,0.2122131]
[1728158913418,0.064738,61790.0,61789.0,0.18197606]
[1728158914331,0.064738,61790.0,61789.0,0.08067606]
[1728158914521,0.064738,61790.0,61789.0,0.19167606]
[1728158914922,0.064738,61790.0,61789.0,0.19267606]
[1728158915117,0.064738,61790.0,61789.0,0.19167606]
[1728158915320,0.065738,61790.0,61789.0,0.30317773]
[1728158915622,0.065738,61790.0,61789.0,0.19267606]
[1728158916418,0.066738,61790.0,61789.0,0.30420936]
[1728158916727,0.066738,61790.0,61789.0,0.19367606]
[1728158917327,0.066738,61790.0,61789.0,0.22353025]
[1728158917831,0.066738,61790.0,61789.0,0.30423002]
[1728158919422,0.066738,61790.0,61789.0,0.22353025]
[1728158920132,0.066738,61790.0,61789.0,0.113]
[1728158921628,0.066738,61790.0,61789.0,0.177739]
[1728158924227,0.002,61790.0,61789.0,0.177739]
[1728158924427,0.03599079,61790.0,61789.0,0.177739]
[1728158926641,0.10072879,61790.0,61789.0,0.177739]
[1728158926934,0.10072879,61790.0,61789.0,0.003]
[1728158927237,0.14035917,61790.0,61789.0,0.003]
[1728158928237,0.066738,61790.0,61789.0,0.003]
[1728158929729,0.066738,61790.0,61787.0,0.057741]
[1728158930041,0.06474,61789.0,61787.0,0.057741]
[1728158930431,0.65,61788.0,61787.0,0.057741]
[1728158930829,0.65,61788.0,61787.0,0.167741]
[1728158931028,0.06474,61789.0,61787.0,0.168741]
[1728158931539,0.71474,61789.0,61787.0,0.168741]
[1728158931838,0.001,61788.0,61787.0,0.168741]
[1728158933337,0.06574,61789.0,61787.0,0.167741]
[1728158933541,0.001,61788.0,61787.0,0.167741]
[1728158934238,0.002,61788.0,61787.0,0.057741]
[1728158934429,0.06674,61788.0,61787.0,0.057741]
[1728158935135,0.09971517,61788.0,61787.0,0.057741]
[1728158935641,0.10071517,61788.0,61787.0,0.057741]
[1728158940040,0.14034659,61788.0,61787.0,0.057741]
[1728158940850,0.07560659,61788.0,61787.0,0.057741]
[1728158941053,0.03597517,61788.0,61787.0,0.057741]
[1728158942448,0.002,61788.0,61787.0,0.057741]
[1728158942649,0.07560637,61788.0,61787.0,0.057741]
[1728158943150,0.002,61788.0,61787.0,0.26551989]
[1728158943838,0.002,61788.0,61787.0,0.16860531]
[1728158944453,0.002,61788.0,61787.0,0.26574202]
[1728158944652,0.076033,61795.0,61792.0,0.064735]
[1728158944844,0.0364,61797.0,61794.0,0.19093949]
[1728158944845,0.0326,61797.0,61794.0,0.19093949]
[1728158945152,0.65,61796.0,61794.0,0.25567249]
[1728158945448,0.65,61796.0,61795.0,0.064733]
[1728158945640,0.65,61796.0,61795.0,0.25636897]
[1728158945943,0.06473,61798.0,61795.0,0.17542948]
[1728158946159,0.06473,61798.0,61797.0,0.11]
[1728158946645,0.71473,61798.0,61797.0,0.11]
[1728158947152,0.71573,61798.0,61797.0,0.11]
[1728158947845,0.71673,61798.0,61797.0,0.111]
[1728158948551,0.002,61798.0,61797.0,0.175731]
[1728158948855,0.002,61798.0,61797.0,0.176731]
[1728158952849,0.002,61798.0,61797.0,0.066731]
[1728158954956,0.06673,61798.0,61797.0,0.002]
[1728158955553,0.71673,61798.0,61797.0,0.002]
[1728158956545,0.064734,61794.0,61793.0,0.04851428]
[1728158956841,0.174734,61794.0,61793.0,0.04851428]
[1728158957244,0.824734,61794.0,61793.0,0.04851428]
[1728158957952,0.825734,61794.0,61793.0,0.04951428]
[1728158958155,0.94898824,61794.0,61793.0,0.001]
[1728158958347,1.095068,61794.0,61793.0,0.00058989]
[1728158958754,0.94998824,61794.0,61793.0,0.00058989]
[1728158959748,0.94998824,61794.0,61787.0,0.067411]
[1728158959749,0.064738,61790.0,61787.0,0.067411]
[1728158959948,0.11,61788.0,61787.0,0.067411]
[1728158960155,0.18357952,61788.0,61787.0,0.067411]
[1728158960855,0.24831952,61788.0,61787.0,0.00267]
[1728158962356,0.24931952,61788.0,61785.0,0.5002629]
[1728158962558,0.07357952,61787.0,61785.0,0.4992229]
[1728158962759,0.07357952,61787.0,61785.0,0.1384229]
[1728158963666,0.07457952,61787.0,61785.0,0.1384229]
[1728158963857,0.03394856,61786.0,61785.0,0.2031659]
[1728158965151,0.001,61787.0,61785.0,0.24918655]
[1728158965359,0.001,61787.0,61786.0,0.17550565]
[1728158966658,0.17474,61788.0,61786.0,0.17550565]
[1728158966862,0.17474,61788.0,61787.0,0.11076365]
[1728158967956,0.17574,61788.0,61787.0,0.11076365]
[1728158968361,0.17574,61788.0,61787.0,0.191612]
[1728158968962,0.17674,61788.0,61787.0,0.191612]
[1728158969163,0.17674,61788.0,61787.0,0.08086596]
[1728158971365,0.064741,61787.0,61786.0,0.08086596]
[1728158971672,0.064741,61787.0,61786.0,0.19159344]
[1728158972365,0.065741,61787.0,61786.0,0.19159344]
[1728158972971,0.066741,61787.0,61786.0,0.19157334]
[1728158974076,0.066741,61787.0,61786.0,0.08086596]
[1728158974569,0.066741,61787.0,61786.0,0.19157253]
[1728158976767,0.066741,61787.0,61786.0,0.19424253]
[1728158976975,0.066741,61787.0,61786.0,0.08353596]
[1728158977980,0.066741,61787.0,61786.0,0.00267]
[1728158979974,0.002,61787.0,61786.0,0.00267]
[1728158980177,0.002,61787.0,61786.0,0.067412]
[1728158980969,0.002,61787.0,61786.0,0.099412]
[1728158982479,0.07565015,61787.0,61786.0,0.099412]
[1728158983579,0.07565015,61787.0,61786.0,0.209412]
[1728158985280,0.07565015,61787.0,61786.0,0.067412]
[1728158987079,0.002,61787.0,61786.0,0.067412]
[1728158987475,0.002,61787.0,61786.0,0.25920892]
[1728158987679,0.176741,61787.0,61786.0,0.08362737]
[1728158988279,0.176741,61787.0,61786.0,0.00267]
[1728158990572,0.176741,61787.0,61786.0,0.06741381]
[1728158991682,0.208341,61787.0,61786.0,0.06741381]
[1728158993085,0.098341,61787.0,61786.0,0.06741381]
[1728158993378,0.208341,61787.0,61786.0,0.06741381]
[1728158994481,0.208341,61787.0,61786.0,0.06474381]
[1728158994985,0.208341,61787.0,61784.0,0.064744]
[1728158994986,0.1436,61787.0,61785.0,0.06474381]
[1728158995175,0.1436,61787.0,61784.0,0.064744]
[1728158995483,0.09849753,61786.0,61784.0,0.064744]
[1728158995679,0.03375553,61785.0,61784.0,0.064744]
[1728158996984,0.09949853,61785.0,61784.0,0.064744]
[1728158997178,0.10049853,61785.0,61784.0,0.064744]
[1728158998174,0.10049853,61785.0,61784.0,0.174744]
[1728159000985,0.03571186,61785.0,61784.0,0.174744]
[1728159001188,0.002,61785.0,61784.0,0.174744]
[1728159001391,0.066743,61785.0,61784.0,0.064744]
[1728159001691,0.10045208,61785.0,61784.0,0.064744]
[1728159001881,0.066743,61785.0,61784.0,0.064744]
[1728159002077,0.10044793,61785.0,61784.0,0.064744]
[1728159002482,0.066743,61785.0,61784.0,0.25672295]
[1728159002793,0.066743,61785.0,61784.0,0.14570137]
[1728159002984,0.066743,61785.0,61784.0,0.25674863]
[1728159003185,0.002,61785.0,61784.0,0.25674863]
[1728159004988,0.002,61785.0,61784.0,0.25677634]
[1728159007391,0.002,61785.0,61784.0,0.174744]
[1728159007605,0.0113,61790.0,61789.0,0.064739]
[1728159007895,0.3608,61794.0,61789.0,0.22104047]
[1728159007896,0.00084,61794.0,61789.0,0.22104047]
[1728159008200,0.0113,61795.0,61794.0,0.064734]
[1728159008390,0.064729,61799.0,61794.0,0.25663856]
[1728159008698,0.064729,61799.0,61796.0,0.11]
[1728159009197,0.00242797,61800.0,61796.0,0.11]
[1728159009395,0.06473,61798.0,61796.0,0.11]
[1728159010595,0.07366795,61797.0,61796.0,0.11]
[1728159010789,0.03962717,61798.0,61797.0,0.064731]
[1728159010984,0.07367443,61798.0,61797.0,0.064731]
[1728159011600,0.07467443,61798.0,61797.0,0.064731]
[1728159012101,0.07567443,61798.0,61797.0,0.066731]
[1728159012597,0.07467443,61798.0,61797.0,0.066731]
[1728159012798,0.07567443,61798.0,61797.0,0.068731]
[1728159012991,0.07567396,61798.0,61797.0,1.154171]
[1728159013197,0.0113,61803.0,61798.0,0.48544]
[1728159013393,0.0113,61806.0,61805.0,0.064722]
[1728159013594,0.0113,61812.0,61805.0,0.4708]
[1728159013896,0.0113,61812.0,61811.0,0.11]
[1728159014093,0.65084,61814.0,61811.0,0.11]
[1728159014300,0.65,61814.0,61811.0,0.174716]
[1728159014501,0.65,61814.0,61811.0,0.11]
[1728159014694,0.65,61814.0,61812.0,0.064714]
[1728159014890,0.65,61814.0,61811.0,0.11]
[1728159015516,0.651,61814.0,61811.0,0.176715]
[1728159016898,0.651,61814.0,61811.0,0.20558741]
[1728159017597,0.651,61814.0,61811.0,0.21158741]
[1728159017598,0.652,61814.0,61811.0,0.21158741]
[1728159018303,0.716713,61814.0,61811.0,0.57238741]
[1728159020807,0.064715,61812.0,61811.0,0.57238741]
[1728159021802,0.064715,61812.0,61811.0,0.21158741]
[1728159022000,0.064715,61812.0,61811.0,0.20858741]
[1728159022302,0.065715,61812.0,61811.0,0.21458741]
[1728159025613,0.13753447,61812.0,61811.0,0.21458741]
[1728159027702,0.13753447,61812.0,61811.0,0.13066247]
[1728159027904,0.18719229,61812.0,61811.0,0.13066247]
[1728159028109,0.13753447,61812.0,61811.0,0.13066247]
[1728159029506,0.18719228,61812.0,61811.0,0.13066247]
[1728159030203,0.13753447,61812.0,61811.0,0.13066247]
[1728159032404,0.33149492,61812.0,61811.0,0.13066247]
[1728159032609,0.065715,61812.0,61811.0,0.13066247]
[1728159036906,0.065715,61812.0,61811.0,0.10179006]
[1728159039517,0.065715,61812.0,61811.0,0.011]
[1728159039818,0.065715,61812.0,61811.0,0.121]
[1728159040511,0.065715,61812.0,61811.0,0.12367]
[1728159049628,0.09721492,61812.0,61811.0,0.12367]
[1728159050123,0.09721492,61812.0,61811.0,0.188386]
[1728159052022,0.09726695,61812.0,61811.0,0.188386]
[1728159052514,0.03258324,61812.0,61811.0,0.188386]
[1728159055221,0.001,61812.0,61811.0,0.25310966]
[1728159055633,0.065715,61812.0,61811.0,0.078386]
[1728159055825,0.065715,61812.0,61811.0,0.188386]
[1728159058123,0.065715,61812.0,61811.0,0.185716]
[1728159063337,0.065715,61812.0,61811.0,0.121]
[1728159066139,0.715715,61812.0,61811.0,0.121]
[1728159067446,0.715715,61812.0,61811.0,0.185716]
[1728159067632,0.715715,61812.0,61811.0,0.23426219]
[1728159067940,0.715715,61812.0,61811.0,0.185716]
[1728159068238,0.651,61812.0,61811.0,0.23426219]
[1728159069133,0.001,61812.0,61811.0,0.23426219]
[1728159070140,0.065715,61812.0,61811.0,0.23426219]
[1728159070336,0.18647943,61812.0,61811.0,0.185716]
[1728159071038,0.18647943,61812.0,61811.0,0.011]
[1728159072641,0.18647943,61812.0,61811.0,0.01367]
[1728159074236,0.54727943,61812.0,61811.0,0.01367]
[1728159074637,0.426515,61812.0,61811.0,0.01367]
[1728159074945,0.54721094,61812.0,61811.0,0.01367]
[1728159077140,0.54721094,61812.0,61811.0,0.078386]
[1728159078040,0.6922767,61812.0,61811.0,0.078386]
[1728159078235,0.426515,61812.0,61811.0,0.078386]
[1728159078442,0.3618,61812.0,61811.0,0.078386]
[1728159079646,0.001,61812.0,61811.0,0.078386]
[1728159079950,0.3618,61812.0,61811.0,0.078386]
[1728159081340,0.426515,61812.0,61811.0,0.078386]
[1728159082740,0.065715,61812.0,61811.0,0.078386]
[1728159082949,0.426515,61812.0,61811.0,0.078386]
[1728159084137,0.065715,61812.0,61811.0,0.078386]
[1728159085550,0.13680477,61812.0,61811.0,0.078386]
[1728159086045,0.07208977,61812.0,61811.0,0.078386]
[1728159086246,0.20973026,61848.0,61811.0,0.078386]
[1728159086247,0.0038,61819.0,61811.0,0.108386]
[1728159086544,0.0038,61819.0,61816.0,0.174711]
[1728159086843,0.0113,61822.0,61821.0,0.064705]
[1728159087053,0.3608,61824.0,61821.0,0.11]
[1728159087244,0.3608,61824.0,61823.0,0.064703]
[1728159087542,0.0113,61827.0,61826.0,0.0647]
[1728159087743,0.068497,61829.0,61826.0,0.1747]
[1728159087744,0.064697,61829.0,61826.0,0.1747]
[1728159088539,0.0433,61832.0,61826.0,0.11]
[1728159088737,0.0433,61832.0,61823.0,0.001]
[1728159088738,0.0113,61832.0,61829.0,0.11]
[1728159088944,0.064694,61832.0,61829.0,0.11]
[1728159089451,0.064696,61830.0,61829.0,0.11]
[1728159089641,0.064694,61832.0,61829.0,0.11]
[1728159090037,0.064695,61831.0,61829.0,0.11]
[1728159090249,0.064695,61831.0,61830.0,0.11]
[1728159091048,0.011,61832.0,61830.0,0.11]
[1728159091250,0.011,61832.0,61831.0,0.064695]
[1728159091546,0.0113,61836.0,61831.0,0.064695]
[1728159091547,0.064692,61834.0,61831.0,0.064695]
[1728159091750,0.064692,61834.0,61833.0,0.11]
[1728159092145,0.06711575,61837.0,61836.0,0.06469]
[1728159092453,0.06711575,61837.0,61836.0,0.17469]
[1728159094255,0.08011575,61837.0,61836.0,0.17569]
[1728159094849,0.09311575,61837.0,61836.0,0.17669]
[1728159096358,0.09311575,61837.0,61836.0,0.112]
[1728159097655,0.09311575,61837.0,61836.0,0.002]
[1728159100252,0.21386814,61837.0,61836.0,0.002]
[1728159100453,0.3589339,61837.0,61836.0,0.002]
[1728159101357,0.2427733,61837.0,61836.0,0.002]
[1728159101660,0.2427733,61837.0,61836.0,0.0012348]
[1728159101860,0.4044559,61837.0,61836.0,0.0012348]
[1728159102052,0.21386814,61837.0,61836.0,0.0012348]
[1728159102553,0.37555074,61837.0,61836.0,0.0012348]
[1728159104249,0.37430013,61837.0,61836.0,0.0012348]
[1728159104455,0.21386814,61837.0,61836.0,0.0012348]
[1728159104657,0.21386814,61837.0,61836.0,0.0039048]
[1728159105065,0.37431546,61837.0,61836.0,0.0039048]
[1728159105466,0.21386814,61837.0,61836.0,0.0039048]
[1728159106166,0.42172416,61837.0,61836.0,0.0039048]
[1728159106365,0.24396814,61837.0,61836.0,0.0039048]
[1728159106571,0.42172416,61837.0,61836.0,0.0039048]
[1728159106862,0.24396814,61837.0,61836.0,0.0039048]
[1728159107559,0.42172416,61837.0,61836.0,0.0039048]
[1728159107766,0.78252416,61837.0,61836.0,0.0039048]
[1728159108365,0.48401575,61837.0,61836.0,0.0039048]
[1728159109465,0.12321575,61837.0,61836.0,0.0039048]
[1728159109659,0.48401575,61837.0,61836.0,0.0039048]
[1728159113968,0.12321575,61837.0,61836.0,0.0039048]
[1728159114471,0.5155866,61837.0,61836.0,0.0039048]
[1728159115368,0.66284331,61837.0,61834.0,0.04563188]
[1728159115581,0.064691,61835.0,61834.0,0.04563188]
[1728159115764,0.18551087,61835.0,61834.0,0.04563188]
[1728159116870,0.19851087,61835.0,61834.0,0.04663188]
[1728159117280,0.23051087,61835.0,61834.0,0.04663188]
[1728159117475,0.23051087,61835.0,61834.0,0.04763188]
[1728159118278,0.24451087,61835.0,61834.0,0.04763188]
[1728159119791,0.60531087,61835.0,61834.0,0.04763188]
[1728159120083,0.66331856,61835.0,61834.0,0.04763188]
[1728159123382,0.484491,61835.0,61834.0,0.04763188]
[1728159125296,0.123691,61835.0,61834.0,0.04763188]
[1728159128694,0.123691,61835.0,61834.0,0.002]
[1728159129288,0.15493418,61835.0,61834.0,0.002]
[1728159129494,0.123691,61835.0,61834.0,0.002]
[1728159130491,0.15493436,61835.0,61834.0,0.002]
[1728159130794,0.15493436,61835.0,61828.0,0.02971193]
[1728159130795,0.49065177,61835.0,61826.0,0.0075]
[1728159130990,0.49065177,61835.0,61822.0,0.094704]
[1728159130991,0.064703,61823.0,61822.0,0.0038]
[1728159131189,0.064698,61828.0,61820.0,0.11]
[1728159131190,0.064705,61822.0,61820.0,0.11]
[1728159131391,0.064698,61828.0,61820.0,0.11]
[1728159131593,0.064705,61821.0,61820.0,0.11]
[1728159131790,0.064705,61821.0,61820.0,0.13984538]
[1728159131995,0.064705,61821.0,61820.0,0.11]
[1728159132495,0.064705,61821.0,61820.0,0.174706]
[1728159133492,0.066705,61821.0,61820.0,0.174706]
[1728159135101,0.069705,61821.0,61820.0,0.174706]
[1728159138491,0.14056018,61821.0,61820.0,0.174706]
[1728159144907,0.19021007,61821.0,61820.0,0.174706]
[1728159145500,0.069705,61821.0,61820.0,0.174706]
[1728159153510,0.10095066,61821.0,61820.0,0.174706]
[1728159155608,0.10095066,61821.0,61820.0,0.11]
[1728159156923,0.064706,61820.0,61817.0,0.174709]
[1728159157106,0.09595366,61819.0,61817.0,0.174709]
[1728159157302,0.03124566,61818.0,61817.0,0.174709]
[1728159157503,0.03124566,61818.0,61817.0,0.20313111]
[1728159158915,0.03124566,61818.0,61817.0,0.20413111]
[1728159159303,0.03124571,61818.0,61817.0,0.20413111]
[1728159159509,0.03124571,61818.0,61817.0,0.20313111]
[1728159159718,0.03124571,61818.0,61817.0,0.20413111]
[1728159160525,0.064708,61819.0,61818.0,0.064709]
[1728159160814,0.064708,61819.0,61818.0,0.27540078]
[1728159161319,0.064708,61819.0,61818.0,0.27542299]
[1728159162411,0.065708,61819.0,61818.0,0.27542299]
[1728159163423,0.065708,61819.0,61817.0,0.08092163]
[1728159163424,0.175708,61819.0,61817.0,0.08092163]
[1728159163623,0.111,61819.0,61816.0,0.08092166]
[1728159163915,0.175708,61819.0,61818.0,0.0647377]
[1728159164510,0.06471,61817.0,61816.0,0.0647377]
[1728159164712,0.064713,61814.0,61813.0,0.08334815]
[1728159165015,0.174713,61814.0,61813.0,0.00242649]
[1728159165206,0.174713,61814.0,61813.0,0.06713323]
[1728159165412,0.174713,61814.0,61813.0,0.00242649]
[1728159166309,0.174713,61814.0,61813.0,0.00642649]
[1728159166509,0.064713,61814.0,61813.0,0.00642649]
[1728159166720,0.064713,61814.0,61813.0,0.01142649]
[1728159168518,0.09596405,61814.0,61813.0,0.01142649]
[1728159171614,0.09596405,61814.0,61813.0,0.009]
[1728159173524,0.09596377,61814.0,61813.0,0.009]
[1728159175036,0.20596377,61814.0,61813.0,0.009]
[1728159175526,0.174713,61814.0,61813.0,0.009]
[1728159176527,0.174713,61814.0,61813.0,0.0574442]
[1728159177414,0.535513,61814.0,61813.0,0.0574442]
[1728159178723,0.535513,61814.0,61813.0,0.009]
[1728159180019,1.620833,61814.0,61813.0,0.009]
[1728159183725,1.020833,61814.0,61813.0,0.009]
[1728159185118,1.020833,61814.0,61813.0,0.008]
[1728159185321,1.020833,61814.0,61813.0,0.004]
[1728159185628,1.020833,61814.0,61813.0,0.007]
[1728159186029,0.535513,61814.0,61813.0,0.007]
[1728159186934,0.425513,61814.0,61813.0,0.007]
[1728159187131,0.535513,61814.0,61813.0,0.007]
[1728159187838,0.425513,61814.0,61813.0,0.007]
[1728159188028,0.535513,61814.0,61813.0,0.007]
[1728159188235,0.535513,61814.0,61813.0,0.004]
[1728159188431,0.535513,61814.0,61806.0,0.0038]
[1728159188636,0.06472,61807.0,61806.0,0.0484442]
[1728159189538,0.06472,61807.0,61806.0,0.0564442]
[1728159189930,0.06572,61807.0,61806.0,0.0644442]
[1728159190130,0.06572,61807.0,61806.0,0.1211652]
[1728159190432,0.06672,61807.0,61806.0,0.080721]
[1728159190634,0.09797454,61807.0,61806.0,0.1104769]
[1728159193247,0.09797454,61807.0,61806.0,0.080721]
[1728159195939,0.09797454,61807.0,61806.0,0.016]
[1728159198641,0.06672,61807.0,61806.0,0.08070674]
[1728159200447,0.06672,61807.0,61806.0,0.016]
[1728159200741,0.06672,61807.0,61806.0,0.01867]
[1728159203847,0.71672,61807.0,61806.0,0.01867]
[1728159205550,0.06672,61807.0,61806.0,0.01867]
[1728159205751,0.09797415,61807.0,61806.0,0.01867]
[1728159210552,0.09797414,61807.0,61806.0,0.01867]
[1728159212052,0.09797413,61807.0,61806.0,0.01867]
[1728159212451,0.20797413,61807.0,61806.0,0.01867]
[1728159213452,0.24759649,61807.0,61806.0,0.01867]
[1728159213654,0.17672,61807.0,61806.0,0.13281901]
[1728159214157,0.06672,61807.0,61806.0,0.13281901]
[1728159218261,0.06672,61807.0,61806.0,0.13014901]
[1728159220757,0.06672,61807.0,61806.0,0.016]
[1728159222760,0.17672,61807.0,61806.0,0.016]
[1728159228071,0.53752,61807.0,61806.0,0.016]
[1728159228665,0.60839864,61807.0,61806.0,0.016]
[1728159229972,0.24759864,61807.0,61806.0,0.016]
[1728159230275,0.60839864,61807.0,61806.0,0.016]
[1728159232665,0.60839864,61807.0,61806.0,0.01867]
[1728159233870,0.24759864,61807.0,61806.0,0.01867]
[1728159234082,0.60839864,61807.0,61806.0,0.01867]
[1728159234474,0.53752,61807.0,61806.0,0.01867]
[1728159234774,0.24759863,61807.0,61806.0,0.01867]
[1728159235090,0.60839863,61807.0,61806.0,0.01867]
[1728159235869,0.60839863,61807.0,61806.0,0.13292856]
[1728159235870,0.53752,61807.0,61806.0,0.13292856]
[1728159239273,0.17672,61807.0,61806.0,0.13292856]
[1728159239472,0.53752,61807.0,61806.0,0.13294091]
[1728159242574,0.17672,61807.0,61806.0,0.13294091]
[1728159242878,0.53752,61807.0,61806.0,0.13296256]
[1728159243775,0.53752,61807.0,61806.0,0.01867]
[1728159243776,0.60839863,61807.0,61806.0,0.01867]
[1728159245879,0.56877521,61807.0,61806.0,0.01867]
[1728159247779,0.56877522,61807.0,61806.0,0.01867]
[1728159249380,0.45877522,61807.0,61806.0,0.01867]
[1728159250578,0.45877522,61807.0,61806.0,0.016]
[1728159250884,0.42752,61807.0,61806.0,0.22746119]
[1728159252091,0.42752,61807.0,61806.0,0.13031504]
[1728159254978,0.42752,61807.0,61806.0,0.26654754]
[1728159256781,0.42752,61807.0,61806.0,0.13031504]
[1728159256981,0.42752,61807.0,61806.0,0.26653679]
[1728159257181,0.42752,61807.0,61806.0,0.13031504]
[1728159257390,0.42752,61807.0,61806.0,0.26652207]
[1728159257690,0.42752,61807.0,61806.0,0.26652214]
[1728159257891,0.42752,61807.0,61806.0,0.016]
[1728159257892,0.4983972,61807.0,61806.0,0.016]
[1728159262277,0.46714262,61807.0,61806.0,0.016]
[1728159262482,0.49839828,61807.0,61806.0,0.016]
[1728159264987,0.49839828,61807.0,61806.0,0.01867]
[1728159265988,0.42752,61807.0,61806.0,0.13302615]